bitfinex-derivatives/quotes_BNBF0:USTF0_20250221
["timestamp","ask_amount","ask_price","bid_price","bid_amount"]
[1740122826487,0.30501753,655.7,654.58,2.97664999]
[1740122826688,0.30501753,655.7,654.5,1.14238331]
[1740122826882,0.30501753,655.7,654.51,2.14192182]
[1740122827087,0.30501753,655.7,654.52,2.14192182]
[1740122827387,0.30501753,655.7,654.5,1.14238331]
[1740122827589,0.30501753,655.7,654.51,2.14221241]
[1740122827786,0.30501753,655.7,654.5,1.14238331]
[1740122828891,0.30501753,655.7,654.26,0.30568886]
[1740122828892,0.30501753,655.7,654.44,1.14238331]
[1740122832399,0.30501753,655.7,654.32,1.14238331]
[1740122832697,1.612,655.69,654.33,5.12029479]
[1740122832897,0.30502684,655.68,654.34,2.14256165]
[1740122833098,0.30502684,655.68,654.35,2.14256165]
[1740122833298,0.30502684,655.68,654.36,2.14256165]
[1740122833498,0.30502684,655.68,654.37,2.14256165]
[1740122833699,0.30502684,655.68,654.33,2.97773314]
[1740122833899,0.30502684,655.68,654.32,1.14238331]
[1740122834796,0.30502684,655.68,654.34,1.14238331]
[1740122837695,0.30502684,655.68,654.27,1.14238331]
[1740122837998,0.30502684,655.68,654.28,2.14333518]
[1740122838196,0.30502684,655.68,654.27,1.14238331]
[1740122838401,0.30502684,655.68,654.28,2.14332467]
[1740122838599,0.30502684,655.68,654.29,2.14332467]
[1740122838800,0.30502684,655.68,654.27,1.14238331]
[1740122839002,0.30502684,655.68,654.28,2.14331637]
[1740122839202,0.30502684,655.68,654.28,2.97877389]
[1740122839401,0.30502684,655.68,654.29,2.14346898]
[1740122839702,0.30502684,655.68,654.3,2.14346898]
[1740122839997,0.30502684,655.68,654.31,3.28585229]
[1740122840201,0.30502684,655.68,654.32,2.14346898]
[1740122840401,0.30502684,655.68,654.33,2.14346898]
[1740122840596,0.30502684,655.68,654.34,2.14346898]
[1740122840795,0.30502684,655.68,654.35,2.14346898]
[1740122841003,0.30502684,655.68,654.36,2.14346898]
[1740122841301,0.30502684,655.68,654.37,2.14346898]
[1740122841502,0.30502684,655.68,654.38,2.14346898]
[1740122841702,0.30502684,655.68,654.39,2.14346898]
[1740122841903,0.30502684,655.68,654.4,2.14346898]
[1740122842201,0.30502684,655.68,654.38,2.97877389]
[1740122842202,0.30502684,655.68,654.41,2.14346898]
[1740122842402,0.30502684,655.68,654.42,2.14346898]
[1740122842602,0.30502684,655.68,654.43,2.14346898]
[1740122842798,0.30502684,655.68,654.44,2.14346898]
[1740122843002,0.30502684,655.68,654.45,2.14346898]
[1740122843203,0.30502684,655.68,654.46,2.14346898]
[1740122843404,0.30502684,655.68,654.47,2.14346898]
[1740122843606,0.30502684,655.68,654.48,2.14346898]
[1740122843803,0.30502684,655.68,654.49,2.14346898]
[1740122844005,0.30502684,655.68,654.5,2.14346898]
[1740122844304,0.30502684,655.68,654.51,2.14346898]
[1740122844501,0.30502684,655.68,654.52,5.12224287]
[1740122844706,0.30502684,655.68,654.53,2.14346898]
[1740122844906,0.30502684,655.68,654.54,2.14346898]
[1740122845106,0.30502684,655.68,654.55,2.14346898]
[1740122845306,0.30502684,655.68,654.56,2.14346898]
[1740122845507,0.30502684,655.68,654.57,2.14346898]
[1740122845706,0.30502684,655.68,654.58,2.14346898]
[1740122845903,0.30502684,655.68,654.59,2.14346898]
[1740122846104,0.30502684,655.68,654.6,5.12224287]
[1740122846299,0.30502684,655.68,654.61,2.14346898]
[1740122846507,0.30502684,655.68,654.62,2.14346898]
[1740122846807,0.30502684,655.68,654.63,2.14346898]
[1740122847001,0.30502684,655.68,654.64,2.14346898]
[1740122847205,0.30502684,655.68,654.65,2.14346898]
[1740122847404,0.30502684,655.68,654.66,5.12224287]
[1740122847601,0.30502684,655.68,654.67,2.14346898]
[1740122847806,0.30502684,655.68,654.68,2.14346898]
[1740122848108,0.30502684,655.68,654.69,2.14346898]
[1740122848308,0.30502684,655.68,654.7,2.14346898]
[1740122848509,0.30502684,655.68,654.66,2.97877389]
[1740122848704,0.30502684,655.68,654.67,2.14254702]
[1740122848910,0.30502684,655.68,654.67,2.97877389]
[1740122850208,0.30502684,655.68,654.36,1.14238331]
[1740122850409,0.30502684,655.68,654.37,2.14189678]
[1740122850603,0.30502684,655.68,654.38,2.14189678]
[1740122850808,0.30502684,655.68,654.39,2.14189678]
[1740122851009,0.30502684,655.68,654.4,2.14189678]
[1740122851309,0.30502684,655.68,654.41,2.14189678]
[1740122851509,0.30502684,655.68,654.42,2.14189678]
[1740122851711,0.30502684,655.68,654.43,2.14189678]
[1740122852009,0.30502684,655.68,654.44,2.14189678]
[1740122852210,0.30502684,655.68,654.45,2.14189678]
[1740122852510,0.30502684,655.68,654.46,2.14189678]
[1740122852810,0.30502684,655.68,654.47,2.14189678]
[1740122853005,0.30502684,655.68,654.48,2.14189678]
[1740122853211,0.30502684,655.68,654.49,2.14189678]
[1740122853513,0.30502684,655.68,654.5,5.11858882]
[1740122853712,0.30502684,655.68,654.51,2.14189678]
[1740122854011,0.30502684,655.68,654.52,2.14189678]
[1740122854207,0.30502684,655.68,654.53,2.14189678]
[1740122854511,0.30502684,655.68,654.54,2.14189678]
[1740122854706,0.30502684,655.68,654.55,5.11858882]
[1740122854909,0.30502684,655.68,654.56,2.14189678]
[1740122855106,0.30502684,655.68,654.57,2.14189678]
[1740122855306,0.30502684,655.68,654.58,2.14189678]
[1740122855511,0.30502684,655.68,654.59,2.14189678]
[1740122855712,0.30502684,655.68,654.6,2.14189678]
[1740122855906,0.30502684,655.68,654.61,2.14189678]
[1740122856212,0.30502684,655.68,654.55,2.97669204]
[1740122856413,0.30502684,655.68,654.56,2.1406484]
[1740122856716,0.30502684,655.68,654.57,5.11734044]
[1740122856914,0.30502684,655.68,654.58,2.1406484]
[1740122857113,0.30502684,655.68,654.59,2.1406484]
[1740122857314,0.30502684,655.68,654.6,2.1406484]
[1740122857614,0.30502684,655.68,654.61,2.1406484]
[1740122857807,0.30502684,655.68,654.62,2.1406484]
[1740122858010,0.30502684,655.68,654.63,2.1406484]
[1740122858211,0.30502684,655.68,654.64,2.1406484]
[1740122858413,0.30502684,655.68,654.65,2.1406484]
[1740122858714,0.30502684,655.68,654.66,2.1406484]
[1740122858908,0.30502684,655.68,654.62,2.97669204]
[1740122859108,0.30502684,655.68,654.63,5.11670634]
[1740122859309,0.30502684,655.68,654.64,2.1400143]
[1740122859507,0.30502684,655.68,654.63,2.97669204]
[1740122859712,0.30502684,655.68,654.64,2.13979046]
[1740122859910,0.30502684,655.68,654.65,2.13979046]
[1740122860112,0.30502684,655.68,654.66,2.13979046]
[1740122860316,0.30502684,655.68,654.67,2.13979046]
[1740122860614,0.30502684,655.68,654.68,2.13979046]
[1740122860816,0.30502684,655.68,654.63,2.97669204]
[1740122861017,0.30502684,655.68,654.64,2.14049876]
[1740122861220,0.30502684,655.68,654.65,2.14049876]
[1740122861517,0.30502684,655.68,654.66,2.14049876]
[1740122861716,0.30502684,655.68,654.32,1.14238331]
[1740122861914,0.30502684,655.68,654.33,2.14033604]
[1740122862110,0.30502684,655.68,654.34,2.14033604]
[1740122862315,0.30502684,655.68,654.35,2.14033604]
[1740122862510,0.30502684,655.68,654.36,2.14033604]
[1740122862717,0.30502684,655.68,654.37,2.14033604]
[1740122863011,0.30502684,655.68,654.38,2.14033604]
[1740122863216,0.30502684,655.68,654.39,5.1146413]
[1740122863410,0.30502684,655.68,654.4,2.14033604]
[1740122863614,0.30502684,655.68,654.41,2.14033604]
[1740122863811,0.30502684,655.68,654.42,2.14033604]
[1740122864010,0.30502684,655.68,654.43,5.1146413]
[1740122864217,0.30502684,655.68,654.44,2.14033604]
[1740122864420,0.30502684,655.68,654.43,2.97430526]
[1740122864421,0.30502684,655.68,654.45,2.14033604]
[1740122864718,0.30502684,655.68,654.46,2.14033604]
[1740122864919,0.30502684,655.68,654.47,2.14033604]
[1740122865219,0.30502684,655.68,654.48,5.1146413]
[1740122865416,0.30502684,655.68,654.49,2.14033604]
[1740122865612,0.30502684,655.68,654.5,2.14033604]
[1740122865816,0.30502684,655.68,654.51,2.14033604]
[1740122866015,0.30502684,655.68,654.52,2.14033604]
[1740122866217,0.30502684,655.68,654.53,2.14033604]
[1740122866419,0.30502684,655.68,654.54,2.14033604]
[1740122866720,0.30502684,655.68,654.55,5.1146413]
[1740122866922,0.30502684,655.68,654.56,2.14033604]
[1740122867118,0.30502684,655.68,654.57,2.14033604]
[1740122867323,0.30502684,655.68,654.58,2.14033604]
[1740122867525,0.30502684,655.68,654.59,2.14033604]
[1740122867724,0.30502684,655.68,654.6,2.14033604]
[1740122868025,0.30502684,655.68,654.61,2.14033604]
[1740122868225,0.30502684,655.68,654.62,5.1146413]
[1740122868426,0.30502684,655.68,654.63,2.14033604]
[1740122868626,0.30502684,655.68,654.64,2.14033604]
[1740122868825,0.30502684,655.68,654.65,2.14033604]
[1740122869027,0.30502684,655.68,654.66,2.14033604]
[1740122869328,0.30502684,655.68,654.67,2.14033604]
[1740122869528,0.30502684,655.68,654.68,2.14033604]
[1740122869730,0.30502684,655.68,654.69,2.14033604]
[1740122870029,0.30502684,655.68,654.7,2.14033604]
[1740122870225,0.30502684,655.68,654.71,2.14033604]
[1740122870425,0.30502684,655.68,654.72,2.14033604]
[1740122870626,0.30502684,655.68,654.73,2.14033604]
[1740122870922,0.30502684,655.68,654.74,5.1146413]
[1740122871126,0.30502684,655.68,654.75,2.14033604]
[1740122871327,0.30502684,655.68,654.76,2.14033604]
[1740122871527,0.30502684,655.68,654.77,2.14033604]
[1740122871730,1.45065423,655.68,654.74,2.97430526]
[1740122871929,1.45065423,655.68,654.75,2.13964827]
[1740122872129,1.45065423,655.68,654.76,2.13964827]
[1740122872330,1.45065423,655.68,654.33,1.14238331]
[1740122872530,1.45065423,655.68,654.34,2.13973271]
[1740122872829,1.45065423,655.68,654.35,5.11333001]
[1740122873030,1.45065423,655.68,654.36,2.13973271]
[1740122873224,1.45065423,655.68,654.37,2.13973271]
[1740122873427,1.45065423,655.68,654.38,2.13973271]
[1740122873625,1.45065423,655.68,654.39,2.13973271]
[1740122873929,1.45065423,655.68,654.4,2.13973271]
[1740122874125,1.45065423,655.68,654.41,5.11333001]
[1740122874325,1.45065423,655.68,654.42,2.13973271]
[1740122874525,1.14562739,655.64,654.43,2.13973271]
[1740122874829,0.30505475,655.62,654.44,2.13973271]
[1740122875031,0.30505475,655.62,654.45,2.13973271]
[1740122875231,0.30505475,655.62,654.46,2.13973271]
[1740122875532,0.30505475,655.62,654.36,1.14238331]
[1740122875533,0.30505475,655.62,654.47,5.11333001]
[1740122875830,0.30505475,655.62,654.48,2.13973271]
[1740122876030,0.30505475,655.62,654.49,2.13973271]
[1740122876231,0.30505475,655.62,654.5,2.13973271]
[1740122876432,0.30505475,655.62,654.51,2.13973271]
[1740122876633,0.30505475,655.62,654.52,2.13973271]
[1740122876832,0.30505475,655.62,654.36,1.14238331]
[1740122876833,0.30505475,655.62,654.53,5.11333001]
[1740122877026,0.30505475,655.62,654.54,2.13973271]
[1740122877227,0.30505475,655.62,654.53,2.9735973]
[1740122877834,1.14562739,655.59,654.53,2.9735973]
[1740122878034,0.30507802,655.57,654.53,2.9735973]
[1740122878333,0.30507802,655.57,654.41,1.14238331]
[1740122880430,0.30507802,655.57,654.29,1.14238331]
[1740122884037,0.30507802,655.57,654.16,1.14238331]
[1740122888535,0.30507802,655.57,654.17,5.11688668]
[1740122888736,0.30507802,655.57,654.18,2.14122184]
[1740122888936,0.30507802,655.57,654.19,2.14122184]
[1740122889137,0.30507802,655.57,654.17,2.97566484]
[1740122889438,0.30507802,655.57,654.18,2.14129579]
[1740122889738,0.30507802,655.57,654.21,1.14238331]
[1740122889939,0.30507802,655.57,654.22,2.14129579]
[1740122890137,0.30507802,655.57,654.21,1.14238331]
[1740122890335,0.30507802,655.57,654.22,2.14146683]
[1740122890535,0.30507802,655.57,654.23,2.97566484]
[1740122892238,0.30507802,655.57,654.21,1.14238331]
[1740122892440,0.30507802,655.57,654.27,1.14238331]
[1740122896545,0.30507802,655.57,654.24,1.14238331]
[1740122899047,0.30507802,655.57,653.97,1.14238331]
[1740122901351,0.30507802,655.57,653.95,1.14238331]
[1740122904347,0.30507802,655.57,654.0,1.14238331]
[1740122904546,0.30507802,655.57,654.01,2.14454507]
[1740122904747,0.30507802,655.57,654.02,2.45034611]
[1740122904945,0.30507802,655.57,654.03,2.45034144]
[1740122905250,0.30507802,655.57,654.04,2.45033676]
[1740122905452,0.30507802,655.57,654.05,2.14454507]
[1740122905652,0.30507802,655.57,654.06,2.14454507]
[1740122905851,0.30507802,655.57,654.07,2.14454507]
[1740122906048,0.30507802,655.57,654.08,2.14454507]
[1740122906250,0.30507802,655.57,654.09,2.14454507]
[1740122906447,0.30507802,655.57,654.1,2.14454507]
[1740122906647,0.30507802,655.57,654.11,2.14454507]
[1740122906847,0.30507802,655.57,654.12,2.14454507]
[1740122907052,0.30507802,655.57,654.38,1.14238331]
[1740122907248,0.30507802,655.57,654.39,2.14454507]
[1740122907453,0.30507802,655.57,654.4,2.14454507]
[1740122907653,0.30507802,655.57,654.41,2.14454507]
[1740122907853,0.30507802,655.57,654.42,2.14454507]
[1740122908153,0.30507802,655.57,654.43,2.14454507]
[1740122908349,0.30507802,655.57,654.44,2.14454507]
[1740122908553,0.30507802,655.57,654.45,2.14454507]
[1740122908853,0.30507802,655.57,654.46,2.14454507]
[1740122909053,0.30507802,655.57,654.4,2.98121462]
[1740122909256,0.30507802,655.57,654.05,0.88644465]
[1740122909257,0.30507802,655.57,654.46,2.98121462]
[1740122910561,0.30507802,655.57,654.35,1.14238331]
[1740122910762,0.30507802,655.57,654.36,2.14231484]
[1740122911053,0.30507802,655.57,654.37,5.1192761]
[1740122911258,0.30507802,655.57,654.38,2.14231484]
[1740122911459,0.30507802,655.57,654.39,2.14231484]
[1740122911661,0.30507802,655.57,654.4,2.14231484]
[1740122911859,0.30507802,655.57,654.41,2.14231484]
[1740122912158,0.30507802,655.57,654.42,2.14231484]
[1740122912357,0.30507802,655.57,654.43,2.14231484]
[1740122912660,0.30507802,655.57,654.44,2.14231484]
[1740122912862,0.30507802,655.57,654.45,2.14231484]
[1740122913162,0.30507802,655.57,654.46,2.14231484]
[1740122913363,0.30507802,655.57,654.45,2.97696126]
[1740122913559,0.30507802,655.57,654.46,2.14141901]
[1740122913761,0.30507802,655.57,654.47,2.14139835]
[1740122914060,0.30507802,655.57,654.45,2.97696126]
[1740122914257,0.30507802,655.57,654.46,2.14154122]
[1740122914459,0.30507802,655.57,654.47,2.14154122]
[1740122914658,0.30507802,655.57,654.48,5.11850248]
[1740122914864,0.30507802,655.57,654.49,2.14154122]
[1740122915065,0.30507802,655.57,654.5,2.14154122]
[1740122915264,0.30507802,655.57,654.51,2.14154122]
[1740122915459,0.30507802,655.57,654.52,2.14154122]
[1740122915663,0.30507802,655.57,654.53,2.14154122]
[1740122915967,0.30507802,655.57,654.54,2.14154122]
[1740122916259,0.30507802,655.57,654.55,5.11850248]
[1740122916563,0.30507802,655.57,654.56,2.14154122]
[1740122916758,0.30507802,655.57,654.57,2.14154122]
[1740122916964,0.30507802,655.57,654.58,2.14154122]
[1740122917166,0.30507802,655.57,654.59,5.11850248]
[1740122917359,0.30507802,655.57,654.6,2.14154122]
[1740122917558,0.30507802,655.57,654.61,2.14154122]
[1740122917759,0.30507802,655.57,654.62,2.14154122]
[1740122918061,0.30507802,655.57,654.63,2.14154122]
[1740122918265,0.30507802,655.57,654.64,2.14154122]
[1740122918465,0.30507802,655.57,654.65,5.11850248]
[1740122918761,0.30507802,655.57,654.65,2.97696126]
[1740122920367,0.30507802,655.57,654.36,1.14238331]
[1740122920568,0.30507802,655.57,654.37,2.14014588]
[1740122920869,0.30507802,655.57,654.38,2.14014588]
[1740122921166,0.30507802,655.57,654.39,2.14014588]
[1740122921367,0.30507802,655.57,654.37,2.97442934]
[1740122921368,0.30507802,655.57,654.44,1.14238331]
[1740122921568,0.30507802,655.57,654.45,2.14014588]
[1740122921762,0.30507802,655.57,654.46,2.14014588]
[1740122921962,0.30507802,655.57,654.47,2.14014588]
[1740122922167,0.30507802,655.57,654.48,5.11457522]
[1740122922363,0.30507802,655.57,654.49,2.14014588]
[1740122922571,0.30507802,655.57,654.5,2.14014588]
[1740122922769,0.30507802,655.57,654.51,2.14014588]
[1740122922970,0.30507802,655.57,654.52,2.14014588]
[1740122923171,0.30507802,655.57,654.53,2.14014588]
[1740122923371,0.30507802,655.57,654.54,2.14014588]
[1740122923670,0.30507802,655.57,654.55,2.14014588]
[1740122923870,0.30507802,655.57,654.56,5.11457522]
[1740122924170,0.30507802,655.57,654.57,2.14014588]
[1740122924371,0.30507802,655.57,654.58,2.14014588]
[1740122924571,0.30507802,655.57,654.59,2.14014588]
[1740122924775,0.30507802,655.57,654.6,2.14014588]
[1740122924975,0.30507802,655.57,654.61,2.14014588]
[1740122925174,0.30507802,655.57,654.62,2.14014588]
[1740122925374,0.30507802,655.57,654.56,2.97442934]
[1740122925576,0.30507802,655.57,654.57,2.13939885]
[1740122925776,0.30507802,655.57,654.58,2.13939885]
[1740122925974,0.30507802,655.57,654.59,2.13939885]
[1740122926174,0.30507802,655.57,654.6,5.1126878]
[1740122926372,0.30507802,655.57,654.61,2.13939885]
[1740122926574,0.30507802,655.57,654.62,2.13939885]
[1740122926875,0.30507802,655.57,654.63,2.13939885]
[1740122927076,0.30507802,655.57,654.64,2.13939885]
[1740122927279,0.30507802,655.57,654.65,2.13939885]
[1740122927477,0.30507802,655.57,654.66,2.13939885]
[1740122927777,0.30507802,655.57,654.67,2.13939885]
[1740122927977,0.30507802,655.57,654.66,2.97328895]
[1740122928181,0.30507802,655.57,654.67,2.13920349]
[1740122928378,0.30507802,655.57,654.68,2.13904288]
[1740122928579,0.30507802,655.57,654.66,2.97328895]
[1740122928780,0.30507802,655.57,654.67,2.13898547]
[1740122929081,0.30507802,655.57,654.68,5.11227442]
[1740122929283,0.30507802,655.57,654.69,2.13898547]
[1740122929482,0.30507802,655.57,654.7,2.13898547]
[1740122929682,0.30507802,655.57,654.68,2.97328895]
[1740122930484,0.30507802,655.57,654.34,1.14238331]
[1740122930678,0.30507802,655.57,654.39,1.14238331]
[1740122933688,0.30507802,655.57,654.21,1.14238331]
[1740122933887,0.30507802,655.57,654.21,1.44809554]
[1740122936290,0.30507802,655.57,654.25,1.14238331]
[1740122938991,0.30507802,655.57,654.26,2.96754858]
[1740122939194,0.30507802,655.57,654.27,2.13510936]
[1740122939392,0.30507802,655.57,654.28,2.13510936]
[1740122939587,0.30507802,655.57,654.29,2.13510936]
[1740122939787,0.30507802,655.57,654.26,4.10993189]
[1740122940494,0.30507802,655.57,654.26,1.14238331]
[1740122942095,0.30507802,655.57,654.24,1.14238331]
[1740122944395,0.30507802,655.57,654.22,1.14238331]
[1740122946798,0.30507802,655.57,654.23,5.10212058]
[1740122946997,0.30507802,655.57,654.24,2.13489126]
[1740122947700,0.30507802,655.57,654.23,2.96722932]
[1740122947898,0.30507802,655.57,654.24,2.13487157]
[1740122948501,0.30507802,655.57,654.25,2.13487157]
[1740122948800,0.30507802,655.57,654.26,2.13487157]
[1740122948996,0.30507802,655.57,654.27,2.13487157]
[1740122949202,0.30507802,655.57,654.28,2.13487157]
[1740122949404,0.30507802,655.57,654.29,2.13487157]
[1740122949606,0.30507802,655.57,654.3,2.13487157]
[1740122949907,0.30507802,655.57,654.31,2.13487157]
[1740122950106,0.30507802,655.57,654.32,2.13487157]
[1740122950300,0.30507802,655.57,654.37,1.14238331]
[1740122950505,0.30507802,655.57,654.38,2.13487157]
[1740122950706,0.30507802,655.57,654.39,2.13487157]
[1740122951005,0.30507802,655.57,654.4,2.13487157]
[1740122951305,0.30507802,655.57,654.41,2.13487157]
[1740122951500,0.30507802,655.57,654.42,2.13487157]
[1740122951802,0.30507802,655.57,654.43,2.13487157]
[1740122952001,0.30507802,655.57,654.44,2.13487157]
[1740122952203,0.30507802,655.57,654.45,2.13487157]
[1740122952406,0.30507802,655.57,654.46,2.13487157]
[1740122952605,0.30507802,655.57,654.47,2.13487157]
[1740122952805,0.30507802,655.57,654.48,2.13487157]
[1740122953003,0.30507802,655.57,654.49,2.13487157]
[1740122953211,0.30507802,655.57,654.5,5.10210089]
[1740122953400,0.30507802,655.57,654.51,2.13487157]
[1740122953600,0.30507802,655.57,654.52,2.13487157]
[1740122953804,0.30507802,655.57,654.53,2.13487157]
[1740122954006,0.30507802,655.57,654.54,2.13487157]
[1740122954210,0.30507802,655.57,654.55,2.13487157]
[1740122954403,0.30507802,655.57,654.56,2.13487157]
[1740122954603,0.30507802,655.57,654.57,2.13487157]
[1740122954802,0.30507802,655.57,654.58,2.13487157]
[1740122955007,0.30507802,655.57,654.59,2.13487157]
[1740122955305,0.30507802,655.57,654.6,2.13487157]
[1740122955508,0.30507802,655.57,654.61,2.13487157]
[1740122955807,0.30507802,655.57,654.62,2.13487157]
[1740122956004,0.30507802,655.57,654.62,2.96722932]
[1740122956410,0.30507802,655.57,654.63,2.13701546]
[1740122956607,0.30507802,655.57,654.62,2.96722932]
[1740122956805,0.30507802,655.57,654.63,2.13695322]
[1740122957008,0.30507802,655.57,654.62,2.96722932]
[1740122957210,0.30507802,655.57,654.63,2.1370203]
[1740122957507,0.30507802,655.57,654.62,2.96722932]
[1740122957705,0.30507802,655.57,654.63,2.13732409]
[1740122957904,0.30507802,655.57,654.62,2.96722932]
[1740122958110,0.30507802,655.57,654.63,2.1373144]
[1740122958309,0.30507802,655.57,654.52,1.14238331]
[1740122958504,0.30507802,655.57,654.53,2.13765376]
[1740122958708,0.30507802,655.57,654.54,2.13765376]
[1740122958905,0.30507802,655.57,654.52,1.14238331]
[1740122958906,0.30507802,655.57,654.55,5.10872739]
[1740122959107,0.30507802,655.57,654.56,2.13765376]
[1740122959311,0.30507802,655.57,654.57,2.13765376]
[1740122959606,0.30507802,655.57,654.58,2.13765376]
[1740122959811,0.30507802,655.57,654.59,2.13765376]
[1740122960108,0.30507802,655.57,654.6,2.13765376]
[1740122960306,0.30507802,655.57,654.61,2.13765376]
[1740122960505,0.30507802,655.57,654.62,2.13765376]
[1740122960706,0.30507802,655.57,654.63,2.13765376]
[1740122960912,0.30507802,655.57,654.64,2.13765376]
[1740122961213,0.30507802,655.57,654.65,2.13765376]
[1740122961414,0.30507802,655.57,654.66,2.13765376]
[1740122961607,0.30507802,655.57,654.67,2.13765376]
[1740122961914,0.30507802,655.57,654.68,2.13765376]
[1740122962105,0.30507802,655.57,654.69,2.13765376]
[1740122962309,0.30507802,655.57,654.7,2.13765376]
[1740122962510,0.30507802,655.57,654.71,2.13765376]
[1740122962712,0.30507802,655.57,654.72,2.13765376]
[1740122962912,0.30507802,655.57,654.73,2.13765376]
[1740122963112,0.30507802,655.57,654.74,2.13765376]
[1740122963315,0.30507802,655.57,654.7,2.97107363]
[1740122963507,0.30507802,655.57,654.71,2.13950968]
[1740122963810,0.30507802,655.57,654.72,5.11058331]
[1740122964010,0.30507802,655.57,654.73,2.13950968]
[1740122964210,0.30507802,655.57,654.72,2.97107363]
[1740122965514,0.30507802,655.57,654.54,1.14238331]
[1740122965715,0.30507802,655.57,654.55,2.14070374]
[1740122965911,0.30507802,655.57,654.56,2.14070374]
[1740122966116,1.224,655.56,654.57,2.14070374]
[1740122966310,1.224,655.56,654.58,2.14070374]
[1740122966617,0.30508733,655.55,654.59,2.14070374]
[1740122966816,0.30508733,655.55,654.6,2.14070374]
[1740122967011,0.30508733,655.55,654.56,2.97520208]
[1740122967217,0.30508733,655.55,654.57,2.14077888]
[1740122967516,0.30508733,655.55,654.58,2.14077888]
[1740122967718,0.30508733,655.55,654.59,2.14077888]
[1740122967917,0.30508733,655.55,654.58,2.97520208]
[1740122968612,0.30508733,655.55,654.59,2.14126278]
[1740122968816,0.30508733,655.55,654.58,2.97520208]
[1740122969213,0.30508733,655.55,654.59,2.97520208]
[1740122971217,0.30508733,655.55,654.43,1.14238331]
[1740122971417,0.30508733,655.55,654.44,2.14165639]
[1740122971614,0.30508733,655.55,654.45,2.14165639]
[1740122971816,0.30508733,655.55,654.46,5.11829087]
[1740122972018,0.30508733,655.55,654.47,2.14165639]
[1740122972219,0.30508733,655.55,654.48,2.14165639]
[1740122972519,0.30508733,655.55,654.49,2.14165639]
[1740122972720,0.30508733,655.55,654.5,2.14165639]
[1740122972921,0.30508733,655.55,654.51,2.14165639]
[1740122973120,0.30508733,655.55,654.52,2.14165639]
[1740122973423,0.30508733,655.55,654.53,2.14165639]
[1740122973621,0.30508733,655.55,654.54,2.14165639]
[1740122973821,0.30508733,655.55,654.55,2.14165639]
[1740122974022,0.30508733,655.55,654.56,2.97663448]
[1740122974321,0.30508733,655.55,654.57,2.14143143]
[1740122974519,0.30508733,655.55,654.58,2.14143143]
[1740122974818,0.30508733,655.55,654.59,2.14143143]
[1740122975018,0.30508733,655.55,654.6,2.14143143]
[1740122975217,0.30508733,655.55,654.61,2.14143143]
[1740122975422,0.30508733,655.55,654.62,2.14143143]
[1740122975626,0.30508733,655.55,654.63,2.14143143]
[1740122975824,0.30508733,655.55,654.64,2.14143143]
[1740122976019,0.30508733,655.55,654.65,2.14143143]
[1740122976324,0.30508733,655.55,654.66,2.14143143]
[1740122976525,0.30508733,655.55,654.61,2.97663448]
[1740122976725,0.30508733,655.55,654.62,2.14109498]
[1740122976923,0.30508733,655.55,654.63,2.14109498]
[1740122977118,0.30508733,655.55,654.64,2.14109498]
[1740122977326,0.30508733,655.55,654.65,2.14109498]
[1740122977526,0.30508733,655.55,654.66,2.14109498]
[1740122977726,0.30508733,655.55,654.65,2.97663448]
[1740122977926,0.30508733,655.55,654.66,2.14096977]
[1740122978126,0.30508733,655.55,654.67,2.14096977]
[1740122978425,0.30508733,655.55,654.68,2.14097927]
[1740122978631,0.30508733,655.55,654.65,2.97663448]
[1740122978824,0.30508733,655.55,654.66,2.14098194]
[1740122979027,0.30508733,655.55,654.67,2.14098194]
[1740122979227,0.30508733,655.55,654.67,2.97663448]
[1740122981227,0.30508733,655.55,654.38,1.14238331]
[1740122984135,0.30508733,655.55,647.59,9.13396501]
[1740122984136,0.30508733,655.55,654.22,1.14238331]
[1740122984329,0.30508733,655.55,654.23,2.14016382]
[1740122984530,0.30508733,655.55,654.24,2.14016382]
[1740122984731,0.30508733,655.55,654.25,2.14016382]
[1740122984929,0.30508733,655.55,654.26,2.14016382]
[1740122985129,0.30508733,655.55,654.27,2.14016382]
[1740122985334,0.30508733,655.55,654.28,2.14016382]
[1740122985529,0.30508733,655.55,654.29,2.14016382]
[1740122985732,0.30508733,655.55,654.3,2.14016382]
[1740122986036,0.30508733,655.55,654.31,2.14016382]
[1740122986235,0.30508733,655.55,654.32,2.97431654]
[1740122987137,0.30508733,655.55,654.33,2.13976927]
[1740122987336,0.30508733,655.55,654.32,2.97431654]
[1740122987536,0.30508733,655.55,654.33,2.13974549]
[1740122987731,0.30508733,655.55,654.33,2.97431654]
[1740122988838,0.30508733,655.55,654.34,2.97431654]
[1740122990034,0.30508733,655.55,654.35,2.13951655]
[1740122990238,0.30508733,655.55,654.36,2.13951655]
[1740122990435,0.30508733,655.55,654.37,2.13951655]
[1740122990740,0.30508733,655.55,654.38,2.13951655]
[1740122990941,0.30508733,655.55,654.39,5.11284806]
[1740122991135,0.30508733,655.55,654.4,2.13951655]
[1740122991336,0.30508733,655.55,654.41,2.13951655]
[1740122991536,0.30508733,655.55,654.42,2.13951655]
[1740122991736,0.30508733,655.55,654.43,2.13951655]
[1740122991936,0.30508733,655.55,654.39,2.97333151]
[1740122991937,0.30508733,655.55,654.44,2.13951655]
[1740122992241,0.30508733,655.55,654.45,5.11284806]
[1740122992444,0.30508733,655.55,654.46,2.13951655]
[1740122992643,0.30508733,655.55,654.47,2.13951655]